[Event "Early-Titled-Tuesday-Blitz-January-30-2024"]
[Site "Chess.com"]
[Date "2024.01.30"]
[Round "5"]
[White "Pastore1978"]
[Black "FLYD"]
[Result "1/2-1/2"]
[WhiteElo "2280"]
[BlackElo "2046"]
[TimeControl "180+1"]
[EndTime "8:58:00 PST"]
[Termination "Game drawn by repetition"]

1. e4 {[%clk 0:03:00.9]} 1... c6 {[%clk 0:02:53.9]} 2. d4 {[%clk 0:02:58.1]}
2... d5 {[%clk 0:01:06.5]} 3. exd5 {[%clk 0:02:59]} 3... cxd5 {[%clk 0:01:06.6]}
4. Bd3 {[%clk 0:02:58.3]} 4... Nc6 {[%clk 0:01:05.4]} 5. c3 {[%clk 0:02:58.9]}
5... Nf6 {[%clk 0:01:05.6]} 6. Bf4 {[%clk 0:02:59.1]} 6... g6 {[%clk 0:01:04.3]}
7. Nf3 {[%clk 0:02:58.1]} 7... Bf5 {[%clk 0:01:04.1]} 8. Ne5 {[%clk 0:02:58.4]}
8... Bg7 {[%clk 0:01:03.1]} 9. Bxf5 {[%clk 0:02:57]} 9... gxf5 {[%clk 0:01:04]}
10. O-O {[%clk 0:02:54.3]} 10... e6 {[%clk 0:01:04.5]} 11. Nd2 {[%clk
0:02:53.4]} 11... O-O {[%clk 0:01:02.5]} 12. Qf3 {[%clk 0:02:48.3]} 12... Ne4
{[%clk 0:01:01.4]} 13. Rae1 {[%clk 0:02:22.7]} 13... Nxe5 {[%clk 0:00:59.4]} 14.
dxe5 {[%clk 0:02:20.4]} 14... Kh8 {[%clk 0:00:49.8]} 15. Qd3 {[%clk 0:02:09.1]}
15... Qh4 {[%clk 0:00:42.8]} 16. Bg3 {[%clk 0:01:48.4]} 16... Qg5 {[%clk
0:00:33.6]} 17. Nf3 {[%clk 0:01:34.7]} 17... Qh6 {[%clk 0:00:27.9]} 18. Qe3
{[%clk 0:01:21.1]} 18... Qg6 {[%clk 0:00:26.7]} 19. Bf4 {[%clk 0:01:14.8]} 19...
h5 {[%clk 0:00:26]} 20. Nh4 {[%clk 0:01:13.6]} 20... Qh7 {[%clk 0:00:25.7]} 21.
Qf3 {[%clk 0:01:12.8]} 21... Rg8 {[%clk 0:00:25]} 22. Qh3 {[%clk 0:01:00.2]}
22... Bh6 {[%clk 0:00:24.3]} 23. Qe3 {[%clk 0:00:45.4]} 23... Bxf4 {[%clk
0:00:17.7]} 24. Qxf4 {[%clk 0:00:46.3]} 24... Rg4 {[%clk 0:00:17.8]} 25. Qc1
{[%clk 0:00:42.7]} 25... Rxh4 {[%clk 0:00:18.2]} 26. f3 {[%clk 0:00:43.5]} 26...
Nc5 {[%clk 0:00:17.2]} 27. Qg5 {[%clk 0:00:40.7]} 27... Rc4 {[%clk 0:00:15.4]}
28. f4 {[%clk 0:00:35.8]} 28... Ne4 {[%clk 0:00:15.1]} 29. Qe7 {[%clk 0:00:36]}
29... Rcc8 {[%clk 0:00:14.8]} 30. Re3 {[%clk 0:00:33.4]} 30... Rg8 {[%clk
0:00:15]} 31. Rh3 {[%clk 0:00:33.3]} 31... Qg6 {[%clk 0:00:15]} 32. g3 {[%clk
0:00:31.5]} 32... Qg4 {[%clk 0:00:15.4]} 33. Rh4 {[%clk 0:00:30.4]} 33... Qg6
{[%clk 0:00:11.7]} 34. Kh1 {[%clk 0:00:24.7]} 34... Rg7 {[%clk 0:00:11.1]} 35.
Qxb7 {[%clk 0:00:22.4]} 35... Rag8 {[%clk 0:00:09.3]} 36. Qxa7 {[%clk
0:00:21.6]} 36... Nxg3+ {[%clk 0:00:09.7]} 37. hxg3 {[%clk 0:00:21.4]} 37...
Qxg3 {[%clk 0:00:10.6]} 38. Rxh5+ {[%clk 0:00:20.6]} 38... Rh7 {[%clk
0:00:10.3]} 39. Rxh7+ {[%clk 0:00:21.3]} 39... Kxh7 {[%clk 0:00:11]} 40. Qxf7+
{[%clk 0:00:21.7]} 40... Rg7 {[%clk 0:00:11.2]} 41. Qh5+ {[%clk 0:00:21.8]}
41... Kg8 {[%clk 0:00:11.9]} 42. Qe8+ {[%clk 0:00:22.2]} 42... Kh7 {[%clk
0:00:12.3]} 43. Qh5+ {[%clk 0:00:17.6]} 43... Kg8 {[%clk 0:00:12.8]} 44. Qe8+
{[%clk 0:00:13.7]} 44... Kh7 {[%clk 0:00:13.3]} 45. Qh5+ {[%clk 0:00:11.6]}
1/2-1/2

[Event "Early-Titled-Tuesday-Blitz-January-30-2024"]
[Site "Chess.com"]
[Date "2024.01.30"]
[Round "5"]
[White "Witik"]
[Black "SergioMoralesG"]
[Result "1-0"]
[WhiteElo "2668"]
[BlackElo "2442"]
[TimeControl "180+1"]
[EndTime "8:58:03 PST"]
[Termination "Witik won on time"]

1. d4 {[%clk 0:02:59.8]} 1... d5 {[%clk 0:02:54.4]} 2. c4 {[%clk 0:03:00]} 2...
c6 {[%clk 0:02:54.9]} 3. Nf3 {[%clk 0:02:59.7]} 3... Nf6 {[%clk 0:02:55.5]} 4.
Qc2 {[%clk 0:03:00]} 4... dxc4 {[%clk 0:02:50.1]} 5. Qxc4 {[%clk 0:03:00]} 5...
g6 {[%clk 0:02:49.3]} 6. g3 {[%clk 0:02:46]} 6... Bg7 {[%clk 0:02:49.1]} 7. Bg2
{[%clk 0:02:46.6]} 7... O-O {[%clk 0:02:49.1]} 8. O-O {[%clk 0:02:47.2]} 8...
Nbd7 {[%clk 0:02:48.9]} 9. e3 {[%clk 0:02:34.3]} 9... Re8 {[%clk 0:02:44.9]} 10.
Rd1 {[%clk 0:02:34.1]} 10... Qc7 {[%clk 0:02:44.7]} 11. Nc3 {[%clk 0:02:32.2]}
11... e5 {[%clk 0:02:41.4]} 12. dxe5 {[%clk 0:02:00.2]} 12... Nxe5 {[%clk
0:02:41.1]} 13. Nxe5 {[%clk 0:01:47.7]} 13... Qxe5 {[%clk 0:02:40.3]} 14. e4
{[%clk 0:01:45.6]} 14... Be6 {[%clk 0:02:34.4]} 15. Qb4 {[%clk 0:01:41.8]} 15...
Qc7 {[%clk 0:02:31.4]} 16. Bf4 {[%clk 0:01:34.7]} 16... Qb6 {[%clk 0:02:31.2]}
17. Qxb6 {[%clk 0:01:13]} 17... axb6 {[%clk 0:02:32.1]} 18. a4 {[%clk
0:01:13.1]} 18... Nd7 {[%clk 0:02:25.3]} 19. Be3 {[%clk 0:00:51.8]} 19... Nc5
{[%clk 0:02:21.8]} 20. Ra3 {[%clk 0:00:32.2]} 20... Red8 {[%clk 0:01:36.2]} 21.
Rxd8+ {[%clk 0:00:26.7]} 21... Rxd8 {[%clk 0:01:37.1]} 22. h3 {[%clk 0:00:26.8]}
22... Bd4 {[%clk 0:00:55.5]} 23. Bxd4 {[%clk 0:00:20]} 23... Rxd4 {[%clk
0:00:56.4]} 24. e5 {[%clk 0:00:12.2]} 24... Rb4 {[%clk 0:00:46.4]} 25. a5 {[%clk
0:00:10.3]} 25... b5 {[%clk 0:00:39.6]} 26. Nd1 {[%clk 0:00:07.3]} 26... Bb3
{[%clk 0:00:26]} 27. Ne3 {[%clk 0:00:07.2]} 27... Ba4 {[%clk 0:00:18.8]} 28. Ng4
{[%clk 0:00:06.7]} 28... Rxb2 {[%clk 0:00:15.5]} 29. Rc3 {[%clk 0:00:06.9]}
29... Ne6 {[%clk 0:00:13.5]} 30. Rd3 {[%clk 0:00:07.4]} 30... h5 {[%clk
0:00:12.1]} 31. Nf6+ {[%clk 0:00:07.6]} 31... Kg7 {[%clk 0:00:12.4]} 32. Rd7
{[%clk 0:00:08.5]} 32... b4 {[%clk 0:00:12.1]} 33. Rxb7 {[%clk 0:00:08.9]} 33...
c5 {[%clk 0:00:11.5]} 34. Rb8 {[%clk 0:00:09.4]} 34... Nf8 {[%clk 0:00:10.2]}
35. a6 {[%clk 0:00:09]} 35... Ra2 {[%clk 0:00:08.2]} 36. a7 {[%clk 0:00:09.4]}
36... Nd7 {[%clk 0:00:01.8]} 37. Rg8+ {[%clk 0:00:03.5]} 37... Kh6 {[%clk
0:00:01.2]} 38. Rh8+ {[%clk 0:00:04.1]} 1-0

[Event "Early-Titled-Tuesday-Blitz-January-30-2024"]
[Site "Chess.com"]
[Date "2024.01.30"]
[Round "5"]
[White "alvarorodriguezavila"]
[Black "blitis"]
[Result "0-1"]
[WhiteElo "2351"]
[BlackElo "2602"]
[TimeControl "180+1"]
[EndTime "8:58:05 PST"]
[Termination "blitis won by resignation"]

1. e4 {[%clk 0:03:00.9]} 1... c5 {[%clk 0:02:56.4]} 2. d4 {[%clk 0:03:01]} 2...
cxd4 {[%clk 0:02:56.4]} 3. c3 {[%clk 0:03:00.3]} 3... g6 {[%clk 0:02:53.4]} 4.
cxd4 {[%clk 0:02:58.9]} 4... d5 {[%clk 0:02:53.4]} 5. e5 {[%clk 0:02:56.4]} 5...
Nc6 {[%clk 0:02:52.2]} 6. Bb5 {[%clk 0:02:56.7]} 6... Nh6 {[%clk 0:02:38.5]} 7.
h3 {[%clk 0:02:52.2]} 7... Nf5 {[%clk 0:02:31.7]} 8. Bxc6+ {[%clk 0:02:52.6]}
8... bxc6 {[%clk 0:02:31.4]} 9. Nf3 {[%clk 0:02:53.4]} 9... Ba6 {[%clk
0:02:15.6]} 10. Nc3 {[%clk 0:02:48.7]} 10... h5 {[%clk 0:02:12.3]} 11. e6 {[%clk
0:02:28.2]} 11... f6 {[%clk 0:02:03.4]} 12. Qa4 {[%clk 0:02:26.6]} 12... Qc8
{[%clk 0:01:56.3]} 13. Nxd5 {[%clk 0:02:06.5]} 13... Qxe6+ {[%clk 0:01:54.9]}
14. Ne3 {[%clk 0:02:07.2]} 14... Bb5 {[%clk 0:01:48.2]} 15. Qc2 {[%clk
0:02:01.6]} 15... Bh6 {[%clk 0:01:44.2]} 16. Bd2 {[%clk 0:01:33.7]} 16... Bxe3
{[%clk 0:01:37.5]} 17. fxe3 {[%clk 0:01:30.9]} 17... Nxe3 {[%clk 0:01:26.9]} 18.
Qxg6+ {[%clk 0:01:31]} 18... Kd8 {[%clk 0:01:18.8]} 19. Kf2 {[%clk 0:01:31.4]}
19... Rg8 {[%clk 0:01:15.7]} 20. Qxg8+ {[%clk 0:01:17.1]} 20... Qxg8 {[%clk
0:01:16.6]} 21. Bxe3 {[%clk 0:01:17.2]} 21... Kd7 {[%clk 0:01:04.4]} 22. Rhd1
{[%clk 0:01:15.9]} 22... Qd5 {[%clk 0:00:58.2]} 23. a4 {[%clk 0:01:03.3]} 23...
Ba6 {[%clk 0:00:57.7]} 24. Rac1 {[%clk 0:01:03.5]} 24... Rg8 {[%clk 0:00:54.8]}
25. Rc5 {[%clk 0:01:03.2]} 25... Qb3 {[%clk 0:00:49.9]} 26. Rd2 {[%clk
0:00:58.4]} 26... Qxa4 {[%clk 0:00:33.3]} 27. d5 {[%clk 0:00:50.6]} 27... cxd5
{[%clk 0:00:29.2]} 28. Rcxd5+ {[%clk 0:00:47.7]} 28... Ke6 {[%clk 0:00:24.4]}
29. Rd7 {[%clk 0:00:31.4]} 29... Qc4 {[%clk 0:00:13.9]} 30. Kg1 {[%clk
0:00:13.6]} 30... Qf1+ {[%clk 0:00:10.9]} 31. Kh2 {[%clk 0:00:14.3]} 31... Rxg2+
{[%clk 0:00:10.3]} 32. Rxg2 {[%clk 0:00:13.4]} 32... Kxd7 {[%clk 0:00:10.3]} 33.
Nd4 {[%clk 0:00:10]} 33... Bb7 {[%clk 0:00:09.9]} 34. Rd2 {[%clk 0:00:08]} 34...
Qh1+ {[%clk 0:00:09.8]} 35. Kg3 {[%clk 0:00:08.7]} 35... Ke8 {[%clk 0:00:09.1]}
36. Ne6 {[%clk 0:00:06.2]} 36... Qe4 {[%clk 0:00:08.4]} 37. Nc7+ {[%clk
0:00:03.4]} 37... Kf7 {[%clk 0:00:08.2]} 38. Bc5 {[%clk 0:00:03.5]} 38... Qf3+
{[%clk 0:00:05.9]} 39. Kh2 {[%clk 0:00:03.4]} 39... Qf4+ {[%clk 0:00:05.7]} 0-1

[Event "Early-Titled-Tuesday-Blitz-January-30-2024"]
[Site "Chess.com"]
[Date "2024.01.30"]
[Round "5"]
[White "emeli_chess"]
[Black "LaPiToB"]
[Result "1-0"]
[WhiteElo "2479"]
[BlackElo "2284"]
[TimeControl "180+1"]
[EndTime "8:58:05 PST"]
[Termination "emeli_chess won by resignation"]

1. d4 {[%clk 0:03:00.9]} 1... Nf6 {[%clk 0:02:56.1]} 2. c4 {[%clk 0:03:00.2]}
2... e6 {[%clk 0:02:55.9]} 3. Nc3 {[%clk 0:03:00.4]} 3... Bb4 {[%clk 0:02:55.1]}
4. Qc2 {[%clk 0:03:00.7]} 4... O-O {[%clk 0:02:53.2]} 5. a3 {[%clk 0:02:57.8]}
5... Bxc3+ {[%clk 0:02:51]} 6. Qxc3 {[%clk 0:02:58.2]} 6... Ne4 {[%clk
0:02:51.1]} 7. Qc2 {[%clk 0:02:58]} 7... d5 {[%clk 0:02:51.7]} 8. Nf3 {[%clk
0:02:49.4]} 8... c5 {[%clk 0:02:50.6]} 9. dxc5 {[%clk 0:02:46.9]} 9... Nxc5
{[%clk 0:02:43]} 10. e3 {[%clk 0:02:44.9]} 10... Nc6 {[%clk 0:02:33.6]} 11. b4
{[%clk 0:02:39.5]} 11... Ne4 {[%clk 0:02:32.3]} 12. Bb2 {[%clk 0:02:39]} 12...
Nf6 {[%clk 0:02:25.6]} 13. g4 {[%clk 0:02:30.3]} 13... dxc4 {[%clk 0:02:24.1]}
14. Bxc4 {[%clk 0:02:24.6]} 14... Qe7 {[%clk 0:02:07.5]} 15. g5 {[%clk
0:02:18.2]} 15... Nd5 {[%clk 0:02:02.3]} 16. Rg1 {[%clk 0:02:09.6]} 16... Bd7
{[%clk 0:01:58]} 17. Bxd5 {[%clk 0:01:51.2]} 17... exd5 {[%clk 0:01:53.2]} 18.
Qc3 {[%clk 0:01:51.5]} 18... d4 {[%clk 0:01:23.4]} 19. Nxd4 {[%clk 0:01:51]}
19... Ne5 {[%clk 0:01:23]} 20. Nc6 {[%clk 0:01:18.1]} 20... Bxc6 {[%clk
0:01:13.3]} 21. Qxe5 {[%clk 0:01:17.4]} 21... Qxe5 {[%clk 0:01:13.5]} 22. Bxe5
{[%clk 0:01:17.2]} 22... Rfe8 {[%clk 0:01:12.7]} 23. Bd4 {[%clk 0:01:16.1]}
23... a6 {[%clk 0:01:10.7]} 24. Rc1 {[%clk 0:01:13.4]} 24... Rad8 {[%clk
0:01:09.4]} 25. Kd2 {[%clk 0:01:09.7]} 25... Rd5 {[%clk 0:01:04.9]} 26. Rc5
{[%clk 0:01:04.5]} 26... Rd7 {[%clk 0:01:02.3]} 27. h4 {[%clk 0:00:59.7]} 27...
Red8 {[%clk 0:00:59.7]} 28. h5 {[%clk 0:00:57.2]} 28... Re8 {[%clk 0:00:58.9]}
29. h6 {[%clk 0:00:56.9]} 29... g6 {[%clk 0:00:59.2]} 30. Rgc1 {[%clk
0:00:47.4]} 30... Red8 {[%clk 0:00:59.2]} 31. Ke2 {[%clk 0:00:40]} 31... Re8
{[%clk 0:00:58.7]} 32. Kf1 {[%clk 0:00:38.8]} 32... Re4 {[%clk 0:00:57]} 33. Bf6
{[%clk 0:00:31]} 33... Rd2 {[%clk 0:00:45]} 34. R5c2 {[%clk 0:00:24.6]} 34...
Rd7 {[%clk 0:00:31.9]} 35. Rxc6 {[%clk 0:00:22]} 35... bxc6 {[%clk 0:00:31.6]}
36. Rxc6 {[%clk 0:00:22.3]} 36... Re8 {[%clk 0:00:26]} 37. Rxa6 {[%clk
0:00:22.5]} 37... Rd2 {[%clk 0:00:21.7]} 38. Rb6 {[%clk 0:00:21.2]} 38... Ra8
{[%clk 0:00:19.9]} 39. a4 {[%clk 0:00:20.1]} 39... Rc8 {[%clk 0:00:19]} 40. a5
{[%clk 0:00:18.5]} 40... Kf8 {[%clk 0:00:19.6]} 41. a6 {[%clk 0:00:17.7]} 41...
Ke8 {[%clk 0:00:19.7]} 42. a7 {[%clk 0:00:15.1]} 42... Ra2 {[%clk 0:00:19.6]}
43. Rb7 {[%clk 0:00:14.5]} 43... Ra8 {[%clk 0:00:18.4]} 44. Bd4 {[%clk
0:00:14.3]} 44... Ra6 {[%clk 0:00:12.1]} 45. b5 {[%clk 0:00:14]} 45... Ra2
{[%clk 0:00:10.6]} 46. b6 {[%clk 0:00:13.9]} 1-0

[Event "Early-Titled-Tuesday-Blitz-January-30-2024"]
[Site "Chess.com"]
[Date "2024.01.30"]
[Round "5"]
[White "Shuvalov"]
[Black "Trojan-Knight"]
[Result "0-1"]
[WhiteElo "2467"]
[BlackElo "2670"]
[TimeControl "180+1"]
[EndTime "8:58:06 PST"]
[Termination "Trojan-Knight won by resignation"]

1. d4 {[%clk 0:03:00.9]} 1... Nf6 {[%clk 0:02:58.7]} 2. c4 {[%clk 0:03:00.6]}
2... g6 {[%clk 0:02:58.9]} 3. Nc3 {[%clk 0:03:00.3]} 3... d5 {[%clk 0:02:59.5]}
4. cxd5 {[%clk 0:02:59.5]} 4... Nxd5 {[%clk 0:03:00.4]} 5. e4 {[%clk 0:02:59.8]}
5... Nxc3 {[%clk 0:03:00.8]} 6. bxc3 {[%clk 0:03:00.7]} 6... Bg7 {[%clk
0:03:00.9]} 7. Nf3 {[%clk 0:03:01.2]} 7... c5 {[%clk 0:03:00]} 8. Bb5+ {[%clk
0:03:00.9]} 8... Nc6 {[%clk 0:02:58.7]} 9. O-O {[%clk 0:02:59.9]} 9... O-O
{[%clk 0:02:56.1]} 10. Bxc6 {[%clk 0:03:00]} 10... bxc6 {[%clk 0:02:55.8]} 11.
Qc2 {[%clk 0:03:00.6]} 11... Bg4 {[%clk 0:02:39.1]} 12. Ne5 {[%clk 0:02:59.9]}
12... Bxe5 {[%clk 0:02:32.2]} 13. dxe5 {[%clk 0:03:00.8]} 13... Qc7 {[%clk
0:02:25.5]} 14. Bh6 {[%clk 0:02:44.6]} 14... Rfd8 {[%clk 0:02:22.7]} 15. f4
{[%clk 0:02:43.4]} 15... c4 {[%clk 0:02:17.9]} 16. f5 {[%clk 0:01:11.1]} 16...
Qxe5 {[%clk 0:02:03.8]} 17. h3 {[%clk 0:01:05.2]} 17... Bh5 {[%clk 0:02:00.2]}
18. g4 {[%clk 0:00:41.7]} 18... Rd3 {[%clk 0:01:56.2]} 19. Bf4 {[%clk
0:00:37.5]} 19... Qxe4 {[%clk 0:01:47.1]} 20. gxh5 {[%clk 0:00:29.8]} 20... Rg3+
{[%clk 0:01:44.9]} 21. Bxg3 {[%clk 0:00:28]} 21... Qxc2 {[%clk 0:01:44.7]} 22.
hxg6 {[%clk 0:00:28.3]} 22... hxg6 {[%clk 0:01:42.2]} 23. fxg6 {[%clk
0:00:28.5]} 23... fxg6 {[%clk 0:01:38.8]} 24. Be5 {[%clk 0:00:21.1]} 24... Rf8
{[%clk 0:01:25.8]} 25. Rxf8+ {[%clk 0:00:20.1]} 25... Kxf8 {[%clk 0:01:26.7]}
26. Rf1+ {[%clk 0:00:20]} 26... Ke8 {[%clk 0:01:26.8]} 27. Rf2 {[%clk
0:00:17.5]} 27... Qd3 {[%clk 0:01:22.6]} 28. Bd4 {[%clk 0:00:16.2]} 28... Qxh3
{[%clk 0:01:20]} 29. Rg2 {[%clk 0:00:13.1]} 29... Qf5 {[%clk 0:01:08.3]} 30. Rf2
{[%clk 0:00:12.2]} 30... Qg4+ {[%clk 0:01:06]} 31. Kf1 {[%clk 0:00:10.5]} 31...
Qh3+ {[%clk 0:00:59.5]} 32. Ke1 {[%clk 0:00:09.1]} 32... g5 {[%clk 0:00:58.5]}
33. Re2 {[%clk 0:00:07.3]} 33... g4 {[%clk 0:00:57.4]} 34. Be5 {[%clk
0:00:06.4]} 34... Qh1+ {[%clk 0:00:55.5]} 35. Kd2 {[%clk 0:00:06.1]} 35... Qd5+
{[%clk 0:00:55.8]} 36. Bd4 {[%clk 0:00:05.6]} 36... c5 {[%clk 0:00:56.1]} 37.
Re5 {[%clk 0:00:05.1]} 37... Qg2+ {[%clk 0:00:44.5]} 38. Re2 {[%clk 0:00:05.2]}
38... Qf3 {[%clk 0:00:39.6]} 39. Be3 {[%clk 0:00:04.7]} 39... g3 {[%clk
0:00:38.2]} 40. Re1 {[%clk 0:00:04]} 40... Qd5+ {[%clk 0:00:34.8]} 41. Kc1
{[%clk 0:00:03.1]} 41... Qd3 {[%clk 0:00:32.8]} 42. Bxc5 {[%clk 0:00:02.3]}
42... Qxc3+ {[%clk 0:00:32.5]} 43. Kd1 {[%clk 0:00:02.8]} 43... Qa1+ {[%clk
0:00:26.3]} 44. Kd2 {[%clk 0:00:02.1]} 44... Qxa2+ {[%clk 0:00:23.6]} 45. Ke3
{[%clk 0:00:02.3]} 45... Qf2+ {[%clk 0:00:21.7]} 46. Ke4 {[%clk 0:00:02.4]}
46... Qxe1+ {[%clk 0:00:20.7]} 0-1

[Event "Early-Titled-Tuesday-Blitz-January-30-2024"]
[Site "Chess.com"]
[Date "2024.01.30"]
[Round "5"]
[White "shimastream"]
[Black "KuzubovYuriy"]
[Result "0-1"]
[WhiteElo "3016"]
[BlackElo "2900"]
[TimeControl "180+1"]
[EndTime "8:58:07 PST"]
[Termination "KuzubovYuriy won by checkmate"]

1. e4 {[%clk 0:03:00.9]} 1... e6 {[%clk 0:02:59.2]} 2. d4 {[%clk 0:02:55]} 2...
d5 {[%clk 0:02:59.6]} 3. Nc3 {[%clk 0:02:53.9]} 3... Bb4 {[%clk 0:02:59.1]} 4.
e5 {[%clk 0:02:52.8]} 4... Ne7 {[%clk 0:02:59.5]} 5. Bd2 {[%clk 0:02:52.3]} 5...
b6 {[%clk 0:02:57]} 6. h4 {[%clk 0:02:48.1]} 6... Ba6 {[%clk 0:02:50.2]} 7. Bxa6
{[%clk 0:02:44.6]} 7... Nxa6 {[%clk 0:02:50.2]} 8. Qe2 {[%clk 0:02:37.7]} 8...
Nb8 {[%clk 0:02:43.3]} 9. Nf3 {[%clk 0:02:25.8]} 9... h6 {[%clk 0:02:36]} 10. h5
{[%clk 0:02:20.1]} 10... Qd7 {[%clk 0:02:30.6]} 11. O-O-O {[%clk 0:02:12.9]}
11... Nbc6 {[%clk 0:02:28.7]} 12. g4 {[%clk 0:02:08.9]} 12... Na5 {[%clk
0:02:14.5]} 13. Kb1 {[%clk 0:02:02.2]} 13... Nc4 {[%clk 0:02:13.1]} 14. Be1
{[%clk 0:02:01.1]} 14... a5 {[%clk 0:02:09.7]} 15. Ka1 {[%clk 0:01:55.3]} 15...
a4 {[%clk 0:02:01.6]} 16. a3 {[%clk 0:01:54.7]} 16... Ba5 {[%clk 0:01:56.9]} 17.
Rg1 {[%clk 0:01:49.6]} 17... Kd8 {[%clk 0:01:48.1]} 18. Na2 {[%clk 0:01:34.9]}
18... Bxe1 {[%clk 0:01:39.6]} 19. Nxe1 {[%clk 0:01:25.9]} 19... Qb5 {[%clk
0:01:32.4]} 20. Nd3 {[%clk 0:01:25.4]} 20... Nc6 {[%clk 0:01:30.7]} 21. Ndb4
{[%clk 0:00:29.2]} 21... Nxb4 {[%clk 0:01:24.8]} 22. axb4 {[%clk 0:00:30.1]}
22... Kc8 {[%clk 0:01:10.7]} 23. f4 {[%clk 0:00:29]} 23... Kb7 {[%clk
0:01:08.2]} 24. f5 {[%clk 0:00:29.2]} 24... Rhe8 {[%clk 0:00:59.3]} 25. Rgf1
{[%clk 0:00:27.6]} 25... f6 {[%clk 0:00:49.2]} 26. exf6 {[%clk 0:00:17]} 26...
exf5 {[%clk 0:00:48.3]} 27. Qd3 {[%clk 0:00:11.6]} 27... gxf6 {[%clk 0:00:44.2]}
28. Rxf5 {[%clk 0:00:09]} 28... Re6 {[%clk 0:00:36.8]} 29. Qf3 {[%clk
0:00:06.7]} 29... Ne3 {[%clk 0:00:32.5]} 30. Rc1 {[%clk 0:00:07.1]} 30... Nxf5
{[%clk 0:00:32]} 31. Qxf5 {[%clk 0:00:05.9]} 31... Rae8 {[%clk 0:00:31.3]} 32.
Nc3 {[%clk 0:00:06.2]} 32... Qxb4 {[%clk 0:00:30.7]} 33. Qxd5+ {[%clk
0:00:06.6]} 33... Kb8 {[%clk 0:00:30]} 34. Na2 {[%clk 0:00:06.9]} 34... Qd6
{[%clk 0:00:29]} 35. Qc4 {[%clk 0:00:06.8]} 35... a3 {[%clk 0:00:27.1]} 36. bxa3
{[%clk 0:00:05.3]} 36... Qxa3 {[%clk 0:00:25.2]} 37. Qf1 {[%clk 0:00:03.5]}
37... Re4 {[%clk 0:00:21.6]} 38. Qd1 {[%clk 0:00:01.6]} 38... Re2 {[%clk
0:00:20.4]} 39. Kb1 {[%clk 0:00:01.7]} 39... R8e3 {[%clk 0:00:19.2]} 40. d5
{[%clk 0:00:02]} 40... Re4 {[%clk 0:00:18.3]} 41. Qd3 {[%clk 0:00:02.3]} 41...
Qxd3 {[%clk 0:00:18.2]} 42. cxd3 {[%clk 0:00:03.2]} 42... Rxg4 {[%clk
0:00:18.3]} 43. Nc3 {[%clk 0:00:03.9]} 43... Re5 {[%clk 0:00:18.3]} 44. Ne4
{[%clk 0:00:03.8]} 44... f5 {[%clk 0:00:18]} 45. Nf6 {[%clk 0:00:04.2]} 45...
Rg7 {[%clk 0:00:18.3]} 46. d6 {[%clk 0:00:04.3]} 46... cxd6 {[%clk 0:00:18.2]}
47. d4 {[%clk 0:00:04.3]} 47... Rb5+ {[%clk 0:00:18.1]} 48. Ka2 {[%clk
0:00:03.9]} 48... Ra7# {[%clk 0:00:18]} 0-1

[Event "Early-Titled-Tuesday-Blitz-January-30-2024"]
[Site "Chess.com"]
[Date "2024.01.30"]
[Round "5"]
[White "SmirnovAlexandrA"]
[Black "Preobrazhenska_D2011"]
[Result "1-0"]
[WhiteElo "2599"]
[BlackElo "2380"]
[TimeControl "180+1"]
[EndTime "8:58:07 PST"]
[Termination "SmirnovAlexandrA won by resignation"]

1. e4 {[%clk 0:02:59.2]} 1... c5 {[%clk 0:02:59.4]} 2. Nf3 {[%clk 0:02:57.5]}
2... d6 {[%clk 0:02:59.7]} 3. Bc4 {[%clk 0:02:54]} 3... Nf6 {[%clk 0:02:49.9]}
4. e5 {[%clk 0:02:53]} 4... dxe5 {[%clk 0:02:43.9]} 5. Nxe5 {[%clk 0:02:53.9]}
5... e6 {[%clk 0:02:41.5]} 6. Qe2 {[%clk 0:02:52.2]} 6... Bd6 {[%clk 0:02:26.5]}
7. f4 {[%clk 0:02:46.4]} 7... O-O {[%clk 0:02:24.5]} 8. b3 {[%clk 0:02:41.2]}
8... Nc6 {[%clk 0:01:57.6]} 9. Nxc6 {[%clk 0:02:37.8]} 9... bxc6 {[%clk
0:01:58.5]} 10. O-O {[%clk 0:02:36.6]} 10... Nd5 {[%clk 0:01:52.9]} 11. Bb2
{[%clk 0:02:15.8]} 11... Nxf4 {[%clk 0:01:19.9]} 12. Qg4 {[%clk 0:02:13.4]}
12... e5 {[%clk 0:01:12.8]} 13. Qg3 {[%clk 0:02:01.8]} 13... Qf6 {[%clk
0:00:51.5]} 14. Nc3 {[%clk 0:01:57.9]} 14... Bf5 {[%clk 0:00:47.5]} 15. Rae1
{[%clk 0:01:52.1]} 15... Qg6 {[%clk 0:00:36.8]} 16. Qxg6 {[%clk 0:01:40.2]}
16... Bxg6 {[%clk 0:00:37.7]} 17. Ne4 {[%clk 0:01:40.1]} 17... Bc7 {[%clk
0:00:23]} 18. d3 {[%clk 0:01:38]} 18... a5 {[%clk 0:00:18.4]} 19. a4 {[%clk
0:01:34.3]} 19... Nd5 {[%clk 0:00:13.9]} 20. Ba3 {[%clk 0:01:30.2]} 20... Nb4
{[%clk 0:00:13.2]} 21. Rf2 {[%clk 0:01:26.7]} 21... Rfe8 {[%clk 0:00:10.4]} 22.
h4 {[%clk 0:01:23.7]} 22... h6 {[%clk 0:00:08.7]} 23. Ref1 {[%clk 0:01:23.1]}
23... Re7 {[%clk 0:00:07.9]} 24. g4 {[%clk 0:01:19.2]} 24... Rf8 {[%clk
0:00:07.6]} 25. h5 {[%clk 0:01:15.5]} 25... Bxe4 {[%clk 0:00:07.4]} 26. dxe4
{[%clk 0:01:16.4]} 26... Rd7 {[%clk 0:00:05.6]} 27. Bc1 {[%clk 0:01:00.4]} 27...
Bd8 {[%clk 0:00:05.6]} 28. c3 {[%clk 0:00:57.2]} 28... Nd3 {[%clk 0:00:04.6]}
29. Rd2 {[%clk 0:00:55.9]} 29... Bg5 {[%clk 0:00:04.3]} 30. Rxd3 {[%clk
0:00:50.1]} 30... Rxd3 {[%clk 0:00:04.6]} 31. Bxd3 {[%clk 0:00:50.9]} 31... Bxc1
{[%clk 0:00:03.9]} 32. Rxc1 {[%clk 0:00:51]} 32... Rd8 {[%clk 0:00:04.5]} 33.
Rd1 {[%clk 0:00:49.7]} 33... Kh7 {[%clk 0:00:03.2]} 34. Kf2 {[%clk 0:00:48.6]}
34... g6 {[%clk 0:00:03.8]} 35. hxg6+ {[%clk 0:00:47.4]} 35... fxg6 {[%clk
0:00:03.5]} 36. Ke3 {[%clk 0:00:47.8]} 36... Kg7 {[%clk 0:00:04.2]} 37. Rf1
{[%clk 0:00:47.3]} 37... Rd7 {[%clk 0:00:03.7]} 38. Bc4 {[%clk 0:00:47.2]} 38...
h5 {[%clk 0:00:03.8]} 39. g5 {[%clk 0:00:47.1]} 39... Rc7 {[%clk 0:00:03.5]} 40.
Rf6 {[%clk 0:00:46.7]} 40... Kh7 {[%clk 0:00:03.5]} 41. Rf7+ {[%clk 0:00:45.6]}
41... Rxf7 {[%clk 0:00:04]} 42. Bxf7 {[%clk 0:00:46.5]} 42... Kg7 {[%clk
0:00:04.5]} 43. Be8 {[%clk 0:00:46.7]} 43... Kf8 {[%clk 0:00:04.4]} 44. Bxg6
{[%clk 0:00:46.3]} 44... h4 {[%clk 0:00:04.3]} 45. Kf3 {[%clk 0:00:44.3]} 45...
Kg7 {[%clk 0:00:04.3]} 46. Be8 {[%clk 0:00:43.1]} 1-0